bitfinex/quotes_SOLUSD_20250420
["timestamp","ask_amount","ask_price","bid_price","bid_amount"]
[1745181246141,61.60033088,137.32,137.31,15.08]
[1745181250969,44.64964886,137.32,137.31,15.08]
[1745181252284,18.64964886,137.33,137.31,17.26483722]
[1745181253459,18.64964886,137.33,137.31,15.08]
[1745181255684,29.49321235,137.33,137.31,15.08]
[1745181256783,29.49321235,137.32,137.29,0.03]
[1745181257281,10.84356349,137.31,137.29,0.03]
[1745181257985,18.64964886,137.3,137.29,0.03]
[1745181258282,29.49321235,137.3,137.29,0.03]
[1745181263594,18.64964886,137.3,137.29,0.03]
[1745181264086,29.49321235,137.3,137.29,0.03]
[1745181264574,18.64964886,137.3,137.29,0.03]
[1745181265585,36.77653354,137.3,137.29,0.03]
[1745181266385,86.18869239,137.3,137.29,0.03]
[1745181266680,80.38653354,137.3,137.29,0.03]
[1745181279783,73.10321235,137.3,137.29,0.03]
[1745181280392,62.25964886,137.3,137.29,0.03]
[1745181280599,73.10321235,137.3,137.29,0.03]
[1745181281293,80.38653354,137.3,137.29,0.03]
[1745181282100,73.10321235,137.3,137.29,0.03]
[1745181282289,80.38653354,137.3,137.29,0.03]
[1745181285781,44.64964886,137.26,137.25,0.03]
[1745181285992,55.49321235,137.26,137.24,15.11]
[1745181286188,29.49321235,137.25,137.24,15.11]
[1745181287499,29.49321235,137.25,137.24,0.03]
[1745181287675,80.38918684,137.25,137.24,0.03]
[1745181287996,83.99086017,137.25,137.24,0.03]
[1745181288198,62.25964886,137.24,137.23,0.03]
[1745181288503,73.10321235,137.24,137.23,0.03]
[1745181289602,80.38971774,137.24,137.23,0.03]
[1745181292190,44.64964886,137.21,137.2,15.08]
[1745181292397,99.10321235,137.21,137.2,15.08]
[1745181292898,44.64964886,137.21,137.2,15.08]
[1745181293099,18.64964886,137.22,137.2,17.26658892]
[1745181293621,10.84356349,137.25,137.2,28.11015241]
[1745181293799,26.0,137.23,137.2,34.18735241]
[1745181294707,18.64964886,137.22,137.2,15.08]
[1745181294890,29.49321235,137.22,137.2,15.08]
[1745181295816,18.64964886,137.22,137.2,17.26654965]
[1745181296895,26.0,137.23,137.2,17.26654965]
[1745181297805,18.64964886,137.22,137.2,17.26654965]
[1745181298012,29.49321235,137.22,137.2,15.08]
[1745181299518,29.49321235,137.22,137.2,17.26654913]
[1745181300818,29.49321235,137.22,137.2,15.08]
[1745181301006,18.64964886,137.22,137.2,17.26658051]
[1745181306507,10.84356349,137.25,137.2,28.110144]
[1745181306713,7.40418275,137.31,137.23,10.84356349]
[1745181306919,7.40418275,137.31,137.22,6.5525]
[1745181306920,5.74818275,137.31,137.25,10.84356349]
[1745181307217,7.28297845,137.31,137.26,15.08]
[1745181307400,26.0,137.27,137.26,15.08]
[1745181308723,18.64964886,137.32,137.27,2.18547388]
[1745181308903,44.64964886,137.3,137.27,2.18547388]
[1745181309105,44.64964886,137.3,137.27,13.02903737]
[1745181309430,43.61,137.33,137.28,10.84356349]
[1745181309431,18.64964886,137.32,137.28,10.84356349]
[1745181309629,26.0,137.31,137.28,10.84356349]
[1745181309808,26.0,137.31,137.27,14.59033737]
[1745181310009,36.84356349,137.31,137.27,3.74677388]
[1745181310708,29.49321235,137.3,137.27,3.74677388]
[1745181311721,55.49321235,137.3,137.27,3.74677388]
[1745181311923,55.49321235,137.3,137.27,1.5613]
[1745181312228,55.49321235,137.3,137.26,17.26557711]
[1745181312414,44.64964886,137.3,137.26,28.1091406]
[1745181312729,44.64964886,137.3,137.27,10.84356349]
[1745181312915,26.0,137.3,137.27,10.84356349]
[1745181314923,10.90656349,137.33,137.28,19.58137817]
[1745181315131,26.0,137.32,137.29,10.84356349]
[1745181316528,0.063,137.33,137.3,12.48686349]
[1745181316729,0.063,137.33,137.32,10.84356349]
[1745181317121,0.063,137.33,137.32,2.18467812]
[1745181317733,0.063,137.33,137.31,17.26477524]
[1745181318937,0.063,137.33,137.31,15.08]
[1745181319331,0.063,137.33,137.31,17.26481944]
[1745181323254,0.063,137.33,137.32,10.84356349]
[1745181323452,0.063,137.33,137.32,19.30234161]
[1745181323738,0.063,137.38,137.35,114.4935]
[1745181323945,0.063,137.41,137.37,10.84356349]
[1745181324239,0.063,137.41,137.4,10.84356349]
[1745181324838,0.063,137.41,137.4,25.90356349]
[1745181325137,0.063,137.41,137.4,15.06]
[1745181325542,0.063,137.41,137.4,25.90356349]
[1745181326834,0.063,137.41,137.4,27.35916756]
[1745181327463,0.063,137.41,137.4,33.43068108]
[1745181330040,0.063,137.41,137.4,15.06]
[1745181330240,44.71264886,137.41,137.4,15.06]
[1745181330570,61.62772587,137.41,137.4,15.06]
[1745181331049,44.71264886,137.41,137.4,15.06]
[1745181332734,61.62772587,137.41,137.4,15.06]
[1745181332970,68.90521659,137.41,137.4,15.06]
[1745181333342,44.64964886,137.37,137.36,264.6]
[1745181333658,61.56472587,137.37,137.36,264.6]
[1745181334050,26.0,137.37,137.36,264.6]
[1745181334235,16.91507701,137.4,137.36,266.05600951]
[1745181334440,44.64964886,137.4,137.36,282.97108652]
[1745181334635,61.56472587,137.4,137.36,266.05600951]
[1745181336270,44.64964886,137.4,137.36,282.97108652]
[1745181337268,61.56472587,137.4,137.36,266.05600951]
[1745181337845,61.56472587,137.4,137.36,264.6]
[1745181338353,16.91507701,137.38,137.36,264.6]
[1745181340139,16.91507701,137.38,137.36,15.06]
[1745181341269,26.0,137.37,137.36,15.06]
[1745181361560,62.76532036,137.37,137.33,0.03]
[1745181361765,55.48571055,137.34,137.33,15.07]
[1745181362372,44.64964886,137.34,137.33,15.07]
[1745181362582,55.48571055,137.34,137.33,15.07]
[1745181362789,44.64964886,137.34,137.33,15.07]
[1745181364595,55.48571055,137.34,137.33,15.07]
[1745181364887,62.76691049,137.34,137.33,15.07]
[1745181365389,55.48571055,137.34,137.33,15.07]
[1745181369397,62.76691049,137.34,137.33,15.07]
[1745181370484,62.76691049,137.34,137.33,0.03]
[1745181371075,66.31819169,137.34,137.33,0.03]
[1745181371271,62.76691049,137.34,137.33,0.03]
[1745181373696,44.64964886,137.34,137.33,0.03]
[1745181375405,55.48571055,137.34,137.33,0.03]
[1745181375993,62.76691049,137.34,137.33,0.03]
[1745181376801,55.48571055,137.34,137.33,0.03]
[1745181379303,44.64964886,137.34,137.33,0.03]
[1745181379804,55.48571055,137.34,137.33,0.03]
[1745181381908,44.64964886,137.34,137.33,0.03]
[1745181382408,44.64964886,137.34,137.33,15.09]
[1745181385404,55.48571055,137.34,137.33,15.09]
[1745181386825,62.76691049,137.34,137.33,15.09]
[1745181389017,44.64964886,137.34,137.33,15.09]
[1745181390116,55.48571055,137.34,137.33,15.09]
[1745181390999,44.64964886,137.34,137.33,15.09]
[1745181394113,18.64964886,137.39,137.33,27.38240771]
[1745181394310,29.48571055,137.39,137.34,10.83606169]
[1745181394822,26.0,137.36,137.34,10.83606169]
[1745181395222,26.0,137.36,137.35,1.45613396]
[1745181399324,26.0,137.36,137.33,25.92606169]
[1745181399503,26.0,137.36,137.34,1.45619542]
[1745181405941,25.0,137.36,137.34,1.45619542]
[1745181407636,18.64964886,137.37,137.34,1.45619542]
[1745181409241,26.0,137.35,137.33,15.09]
[1745181409430,36.83606169,137.35,137.33,15.09]
[1745181409943,26.0,137.35,137.33,16.5463446]
[1745181410542,26.0,137.35,137.33,15.09]
[1745181410744,18.64964886,137.34,137.33,15.09]
[1745181412851,26.0,137.35,137.33,27.38240771]
[1745181413160,26.0,137.35,137.34,10.83606169]
[1745181413828,10.83606169,137.4,137.34,10.83606169]
[1745181414154,26.0,137.37,137.36,10.83606169]
[1745181414529,26.0,137.37,137.35,10.83606169]
[1745181414849,26.0,137.37,137.35,1.45602803]
[1745181415042,26.0,137.37,137.33,32.52066169]
[1745181415247,26.0,137.37,137.34,12.2922785]
[1745181419459,26.0,137.37,137.34,1.45621681]
[1745181419635,26.0,137.37,137.34,12.2922785]
[1745181422553,26.0,137.37,137.35,10.83606169]
[1745181422945,26.0,137.37,137.36,10.83606169]
[1745181423464,26.0,137.37,137.36,12.29208964]
[1745181426662,18.64964886,137.39,137.36,12.29208964]
[1745181427360,0.063,137.41,137.37,10.83606169]
[1745181427544,0.063,137.41,137.39,10.83606169]
[1745181427855,0.063,137.41,137.38,15.04]
[1745181427856,26.063,137.41,137.38,25.87606169]
[1745181428448,29.48571055,137.4,137.38,15.04]
[1745181430552,10.83606169,137.39,137.38,15.04]
[1745181430759,62.76426066,137.39,137.38,15.04]
[1745181437769,106.37426066,137.39,137.38,15.04]
[1745181439869,44.64964886,137.37,137.36,15.04]
[1745181440071,55.48571055,137.37,137.36,15.04]
[1745181447477,62.76532036,137.37,137.36,15.04]
[1745181448556,106.41532036,137.37,137.36,15.04]
[1745181448758,18.64964886,137.34,137.33,0.03]
[1745181448952,29.48571055,137.34,137.33,0.03]
[1745181449160,36.76691049,137.34,137.33,0.03]
[1745181449668,80.41691049,137.34,137.33,0.03]
[1745181453580,73.13571055,137.34,137.33,0.03]
[1745181454089,29.48571055,137.34,137.33,0.03]
[1745181454383,50.92920474,137.38,137.33,15.05]
[1745181454879,26.0,137.34,137.33,15.05]
[1745181455576,18.64964886,137.35,137.33,15.05]
[1745181455959,44.64964886,137.35,137.33,15.05]
[1745181456662,55.48571055,137.35,137.33,15.05]
[1745181457484,44.64964886,137.35,137.33,15.05]
[1745181462265,55.48571055,137.35,137.33,15.05]
[1745181468499,29.48571055,137.34,137.33,15.05]
[1745181470686,18.64964886,137.34,137.33,15.05]
[1745181470986,29.48571055,137.34,137.33,15.05]
[1745181491021,36.76691049,137.34,137.33,15.05]
[1745181491191,29.48571055,137.34,137.33,15.05]
[1745181492815,73.13571055,137.34,137.33,15.05]
[1745181493010,29.48571055,137.34,137.33,15.05]
[1745181493412,29.48571055,137.34,137.33,0.03]
[1745181494108,36.83606169,137.35,137.33,0.03]
[1745181495413,26.0,137.35,137.33,0.03]
[1745181495617,36.83606169,137.35,137.33,0.03]
[1745181499822,44.64964886,137.31,137.3,0.03]
[1745181500022,55.48571055,137.31,137.3,0.03]
[1745181502730,62.76850131,137.31,137.3,0.03]
[1745181503240,106.41850131,137.31,137.3,0.03]
[1745181513231,99.13571055,137.31,137.3,0.03]
[1745181522134,88.29964886,137.31,137.3,0.03]
[1745181522434,99.13571055,137.31,137.3,0.03]
[1745181524240,106.41850131,137.31,137.3,0.03]
[1745181540329,88.29964886,137.31,137.3,0.03]
[1745181540669,18.11651706,137.36,137.3,10.86606169]
[1745181540833,18.64964886,137.35,137.31,10.83606169]
[1745181541032,26.0,137.32,137.3,10.86606169]
[1745181541762,26.0,137.32,137.31,1.45655815]
[1745181543744,26.0,137.32,137.3,1.48662388]
[1745181543944,36.83606169,137.32,137.3,0.03]
[1745181545951,73.13571055,137.31,137.3,0.03]
[1745181546155,18.64964886,137.28,137.27,0.03]
[1745181546341,29.48571055,137.28,137.27,0.03]
[1745181547963,36.77009283,137.28,137.27,0.03]
[1745181551263,80.42009283,137.28,137.27,0.03]
[1745181555257,84.0713354,137.28,137.27,0.03]
[1745181555875,89.82615924,137.28,137.27,0.03]
[1745181562588,88.29964886,137.26,137.25,0.03]
[1745181562767,99.13571055,137.26,137.25,0.03]
[1745181564982,106.42115423,137.26,137.25,0.03]
[1745181568188,44.64964886,137.26,137.25,0.03]
[1745181570805,18.64964886,137.29,137.25,16.86676169]
[1745181570977,25.4808418,137.35,137.27,10.83606169]
[1745181571177,10.83606169,137.32,137.28,15.0]
[1745181571383,26.0,137.29,137.28,15.0]
[1745181571581,26.0,137.29,137.28,25.83606169]
[1745181571787,26.0,137.29,137.28,15.0]
[1745181572693,26.0,137.29,137.28,16.45687645]
[1745181573575,18.64964886,137.3,137.28,16.45687645]
[1745181573792,18.64964886,137.3,137.28,27.29293814]
[1745181574266,18.64964886,137.3,137.28,16.45687645]
[1745181578189,0.063,137.34,137.29,12.46736169]
[1745181578496,26.0,137.32,137.3,10.83606169]
[1745181578802,26.0,137.32,137.3,17.42146169]
[1745181579097,0.063,137.34,137.3,17.42146169]
[1745181579283,26.0,137.32,137.3,17.42146169]
[1745181580107,26.0,137.32,137.31,1.45655815]
[1745181581093,26.0,137.32,137.3,1.45662185]
[1745181581998,44.64964886,137.26,137.25,0.03]
[1745181582995,55.48571055,137.26,137.25,0.03]
[1745181585003,62.77115423,137.26,137.25,0.03]
[1745181586101,44.64964886,137.26,137.25,0.03]
[1745181590611,106.42115423,137.26,137.25,0.03]
[1745181590807,106.42115423,137.26,137.22,0.03]
[1745181591107,73.13571055,137.25,137.22,0.03]
[1745181591702,80.42168504,137.25,137.22,0.03]
[1745181596202,87.70068504,137.25,137.22,0.03]
[1745181596411,80.42168504,137.25,137.22,0.03]
[1745181596594,88.29964886,137.23,137.22,0.03]
[1745181596791,99.13571055,137.23,137.22,0.03]
[1745181598511,106.42274691,137.23,137.22,0.03]
[1745181600097,62.29964886,137.22,137.21,0.03]
[1745181600306,88.29964886,137.2,137.19,0.03]
[1745181600598,149.76858704,137.2,137.19,0.03]
[1745181600909,106.42434028,137.2,137.19,0.03]
[1745181603292,99.13571055,137.2,137.19,0.03]
[1745181603490,99.13571055,137.2,137.14,283.71712227]
[1745181603701,18.64964886,137.18,137.14,283.71712227]
[1745181604396,29.48571055,137.18,137.14,272.88106058]
[1745181605616,29.48571055,137.18,137.14,272.15188185]
[1745181605802,29.48571055,137.18,137.14,282.98794354]
[1745181606298,29.48571055,137.18,137.14,272.15188185]
[1745181606517,29.48571055,137.18,137.14,282.98794354]
[1745181607019,29.48571055,137.18,137.14,272.15188185]
[1745181608720,18.64964886,137.18,137.14,282.98794354]
[1745181609133,29.48571055,137.18,137.14,272.15188185]
[1745181611622,10.83606169,137.17,137.14,272.15188185]
[1745181613136,29.48571055,137.18,137.14,272.15188185]
[1745181613818,10.83606169,137.17,137.14,271.4227]
[1745181614010,10.83606169,137.17,137.14,263.18]
[1745181614817,29.48571055,137.16,137.14,263.18]
[1745181615220,29.48571055,137.16,137.14,14.98]
[1745181617037,29.48571055,137.15,137.14,14.98]
[1745181617331,25.94043004,137.16,137.14,14.98]
[1745181617631,10.83606169,137.15,137.14,14.98]
[1745181618532,18.1273486,137.15,137.14,14.98]
[1745181618836,10.83606169,137.15,137.14,14.98]
[1745181620138,29.48571055,137.15,137.14,14.98]
[1745181620446,36.77699746,137.15,137.14,14.98]
[1745181621137,62.77699746,137.15,137.14,14.98]
[1745181622345,62.77699746,137.15,137.13,0.03]
[1745181622641,10.83606169,137.14,137.13,0.03]
[1745181623155,50.93872571,137.2,137.14,7.9472]
[1745181623463,10.83606169,137.24,137.19,10.83606169]
[1745181623658,10.83606169,137.25,137.2,15.0]
[1745181623843,0.063,137.26,137.22,10.83606169]
[1745181624032,0.063,137.26,137.24,10.83606169]
[1745181624218,0.063,137.26,137.25,15.0]
[1745181624618,26.063,137.26,137.25,15.0]
[1745181624819,26.063,137.26,137.25,15.72859744]
[1745181625134,0.063,137.26,137.25,26.56465913]
[1745181627372,0.063,137.26,137.25,32.68056217]
[1745181633972,0.063,137.3,137.26,7.908]
[1745181634171,0.063,137.33,137.29,16.95196473]
[1745181634476,0.063,137.33,137.32,23.32556473]
[1745181634681,0.063,137.34,137.32,105.55996473]
[1745181634974,0.063,137.38,137.33,16.95196473]
[1745181635148,0.063,137.38,137.37,16.95196473]
[1745181635465,0.063,137.38,137.37,31.91196473]
[1745181638074,0.063,137.38,137.37,32.63992571]
[1745181639282,0.063,137.39,137.38,7.908]
[1745181639458,1e-08,137.4,137.38,26.31516773]
[1745181639771,0.063,137.41,137.39,16.95196473]
[1745181639974,1e-08,137.42,137.4,16.95196473]
[1745181640174,0.063,137.49,137.41,309.42392946]
[1745181640380,0.063,137.49,137.44,16.95196473]
[1745181640558,0.063,137.49,137.44,97.65196473]
[1745181641281,0.063,137.49,137.44,98.37955495]
[1745181641492,1e-08,137.45,137.44,122.93911968]
[1745181642271,1e-08,137.45,137.44,105.98715495]
[1745181646583,0.063,137.5,137.48,27.72737852]
[1745181646786,0.063,137.52,137.49,31.91196473]
[1745181646957,0.063,137.52,137.51,16.95196473]
[1745181647485,0.063,137.52,137.49,14.96]
[1745181647674,0.063,137.52,137.51,16.95196473]
[1745181648560,0.063,137.52,137.51,17.67918456]
[1745181649481,0.063,137.52,137.5,17.67923503]
[1745181650166,0.063,137.52,137.51,16.95196473]
[1745181651094,0.063,137.52,137.51,17.67918456]
[1745181651810,0.063,137.52,137.49,14.96]
[1745181652082,0.063,137.52,137.48,17.67933879]
[1745181652295,35.66461359,137.52,137.49,14.94]
[1745181652694,26.0,137.51,137.49,14.94]
[1745181654100,0.063,137.52,137.5,16.95196473]
[1745181654405,0.063,137.52,137.51,16.95196473]
[1745181654569,0.063,137.52,137.51,97.65196473]
[1745181654776,0.063,137.52,137.51,80.7]
[1745181658687,0.063,137.52,137.49,112.59196473]
[1745181660101,0.063,137.52,137.5,16.95196473]
[1745181661210,0.063,137.52,137.49,112.59196473]
[1745181661779,0.063,137.52,137.49,95.64]
[1745181662290,0.063,137.52,137.49,112.59196473]
[1745181663385,0.063,137.52,137.49,95.64]
[1745181663588,26.0,137.51,137.48,16.95196473]
[1745181663786,16.95196473,137.49,137.46,14.94]
[1745181664102,16.95196473,137.47,137.46,14.94]
[1745181664773,42.87592798,137.47,137.46,14.94]
[1745181664980,68.87592798,137.47,137.46,14.94]
[1745181665205,20.25334886,137.46,137.42,14.94]
[1745181665403,16.95196473,137.44,137.42,14.94]
[1745181665889,42.95196473,137.44,137.42,14.94]
[1745181667002,50.22795871,137.44,137.42,14.94]
[1745181669013,42.95196473,137.44,137.42,14.94]
[1745181670109,50.2279031,137.44,137.42,14.94]
[1745181670710,35.60161359,137.43,137.42,14.94]
[1745181671497,18.64964886,137.43,137.42,14.94]
[1745181674501,26.0,137.44,137.42,14.94]
[1745181675310,16.95196473,137.47,137.42,31.89196473]
[1745181675514,26.0,137.45,137.42,112.59196473]
[1745181675711,26.0,137.45,137.42,95.64]
[1745181676011,42.95196473,137.45,137.42,95.64]
[1745181676912,16.95196473,137.45,137.42,95.64]
[1745181677719,16.95196473,137.44,137.42,95.64]
[1745181678017,16.95196473,137.44,137.42,14.94]
[1745181678895,24.22747565,137.45,137.42,14.94]
[1745181679095,35.60161359,137.44,137.42,14.94]
[1745181680421,18.64964886,137.44,137.42,14.94]
[1745181681914,35.60161359,137.44,137.42,14.94]
[1745181682118,42.87753725,137.44,137.42,14.94]
[1745181682325,35.60161359,137.44,137.42,14.94]
[1745181682820,18.64964886,137.44,137.42,14.94]
[1745181684523,35.60161359,137.44,137.42,14.94]
[1745181685830,18.64964886,137.44,137.42,14.94]
[1745181689920,35.60161359,137.44,137.42,14.94]
[1745181693032,26.0,137.46,137.42,14.94]
[1745181693243,26.0,137.45,137.42,14.94]
[1745181693432,18.64964886,137.51,137.42,22.6925]
[1745181693606,44.64964886,137.48,137.42,120.34446473]
[1745181693807,61.60161359,137.48,137.42,103.3925]
[1745181694415,16.95196473,137.46,137.42,97.3004]
[1745181694629,16.95196473,137.46,137.42,95.64]
[1745181695634,35.60161359,137.47,137.42,95.64]
[1745181696740,18.64964886,137.47,137.42,112.59196473]
[1745181697116,42.95196473,137.48,137.42,112.59196473]
[1745181697316,26.0,137.48,137.43,16.95196473]
[1745181697822,42.95196473,137.48,137.43,16.95196473]
[1745181698340,26.0,137.48,137.44,16.95196473]
[1745181698636,35.60161359,137.49,137.44,1.6368]
[1745181698822,16.95196473,137.48,137.43,103.66526473]
[1745181699225,18.64964886,137.48,137.43,103.66526473]
[1745181699739,35.60161359,137.48,137.43,103.66526473]
[1745181699925,18.64964886,137.48,137.43,103.66526473]
[1745181700338,35.60161359,137.48,137.43,103.66526473]
[1745181700740,35.60161359,137.48,137.43,86.7133]
[1745181701337,29.47150669,137.48,137.43,80.7]
[1745181701916,26.0,137.47,137.43,80.7]
[1745181702116,26.0,137.47,137.43,91.52185783]
[1745181702648,26.0,137.47,137.43,80.7]
[1745181703144,36.82185783,137.47,137.43,80.7]
[1745181704330,10.82185783,137.47,137.43,80.7]
[1745181706754,10.82185783,137.46,137.43,80.7]
[1745181708048,29.47150669,137.47,137.43,80.7]
[1745181708237,10.82185783,137.45,137.42,14.94]
[1745181708452,10.82185783,137.44,137.42,14.94]
[1745181708827,10.82185783,137.43,137.42,14.94]
[1745181709249,29.47150669,137.43,137.42,14.94]
[1745181710258,36.74793832,137.43,137.42,14.94]
[1745181710730,29.47150669,137.43,137.42,14.94]
[1745181711841,36.74793832,137.43,137.42,14.94]
[1745181715229,29.47150669,137.43,137.42,14.94]
[1745181715532,36.74793832,137.43,137.42,14.94]
[1745181717646,26.0,137.4,137.38,15.003]
[1745181717952,10.82185783,137.39,137.38,15.003]
[1745181720352,26.0,137.4,137.38,15.003]
[1745181720750,36.82185783,137.4,137.38,15.003]
[1745181721146,10.82185783,137.39,137.38,15.003]
[1745181722153,36.82185783,137.4,137.38,15.003]
[1745181722754,10.82185783,137.39,137.38,15.003]
[1745181723061,29.47150669,137.39,137.38,15.003]
[1745181724062,36.7500568,137.39,137.38,15.003]
[1745181727073,29.47150669,137.39,137.38,15.003]
[1745181729068,36.7500568,137.39,137.38,15.003]
[1745181730242,29.47150669,137.39,137.38,15.003]
[1745181733870,36.7500568,137.39,137.38,15.003]
[1745181735882,29.47150669,137.39,137.38,15.003]
[1745181736276,36.7500568,137.39,137.38,15.003]
[1745181736772,36.7500568,137.39,137.38,0.063]
[1745181738877,80.4000568,137.39,137.38,0.063]
[1745181739752,18.64964886,137.38,137.37,0.063]
[1745181739956,29.47150669,137.38,137.37,0.063]
[1745181740772,36.75058661,137.38,137.37,0.063]
[1745181742376,80.40058661,137.38,137.37,0.063]
[1745181744473,80.40058661,137.38,137.36,0.063]
[1745181744773,36.7511165,137.37,137.36,0.063]
[1745181752674,80.4011165,137.37,137.36,0.063]
[1745181754280,62.29964886,137.37,137.36,0.063]
[1745181754479,36.59562617,137.47,137.36,0.063]
[1745181754480,10.0653371,137.53,137.37,6.0429]
[1745181754694,10.0653371,137.53,137.46,10.82185783]
[1745181754695,56.13478128,137.52,137.46,10.82185783]
[1745181754870,45.31292345,137.52,137.47,14.94]
[1745181755066,26.0,137.5,137.47,25.76185783]
[1745181755286,26.0,137.5,137.47,14.94]
[1745181755467,18.64964886,137.49,137.47,14.94]
[1745181755885,35.55240517,137.49,137.47,14.94]
[1745181756286,18.64964886,137.45,137.43,264.42]
[1745181762996,26.0,137.45,137.43,281.32275631]
[1745181763497,26.0,137.45,137.43,264.42]
[1745181763893,18.64964886,137.47,137.43,264.42]
[1745181763894,44.64964886,137.47,137.43,264.42]
[1745181764993,88.28964886,137.47,137.43,264.42]
[1745181766097,44.64964886,137.47,137.43,264.42]
[1745181766590,61.55240517,137.47,137.43,264.42]
[1745181768281,44.64964886,137.47,137.43,264.42]
[1745181768695,44.64964886,137.47,137.43,281.32275631]
[1745181771115,44.64964886,137.47,137.43,264.42]
[1745181771699,44.64964886,137.47,137.43,281.32275631]
[1745181773606,61.55240517,137.47,137.43,14.94]
[1745181774997,105.19240517,137.47,137.43,14.94]
[1745181775194,61.55240517,137.47,137.43,14.94]
[1745181777007,61.55240517,137.44,137.43,14.94]
[1745181777307,55.47926961,137.44,137.43,14.94]
[1745181778908,44.64964886,137.44,137.43,14.94]
[1745181779615,43.64,137.5,137.43,25.76962075]
[1745181779807,29.47926961,137.49,137.44,10.82962075]
[1745181780113,26.0,137.46,137.44,10.82962075]
[1745181780499,26.0,137.46,137.43,14.94]
[1745181780500,26.0,137.46,137.43,25.76962075]
[1745181782715,26.0,137.46,137.44,10.82962075]
[1745181785916,26.0,137.46,137.45,10.82962075]
[1745181786817,18.64964886,137.49,137.45,10.82962075]
[1745181786818,18.64964886,137.5,137.45,10.82962075]
[1745181787011,26.0,137.47,137.45,10.82962075]
[1745181787402,26.0,137.47,137.44,1.6293]
[1745181787599,18.64964886,137.5,137.46,10.82962075]
[1745181787798,18.64964886,137.5,137.47,10.82962075]
[1745181788000,44.64964886,137.5,137.48,14.92]
[1745181790024,55.47926961,137.5,137.48,14.92]
[1745181790205,10.82962075,137.49,137.48,14.92]
[1745181790522,44.64964886,137.5,137.48,14.92]
[1745181791422,55.47926961,137.5,137.48,14.92]
[1745181794729,44.64964886,137.5,137.48,14.92]
[1745181796329,0.063,137.52,137.49,10.82962075]
[1745181796504,0.063,137.52,137.51,10.82962075]
[1745181796706,0.063,137.53,137.51,93.14552075]
[1745181796922,0.063,137.53,137.52,10.82962075]
[1745181798202,0.063,137.53,137.52,91.52962075]
[1745181798203,1e-08,137.53,137.52,91.52962075]
[1745181811133,1e-08,137.55,137.52,134.84810375]
[1745181811332,0.03,137.56,137.54,10.82962075]
[1745181811333,1e-08,137.56,137.54,10.82962075]
[1745181811644,1e-08,137.56,137.55,10.82962075]
[1745181814649,1e-08,137.58,137.55,98.13582075]
[1745181814947,1e-08,137.58,137.57,10.82962075]
[1745181815137,1e-08,137.59,137.57,91.52962075]
[1745181815325,1e-08,137.59,137.58,25.72962075]
[1745181822152,1e-08,137.59,137.58,106.42962075]
[1745181841783,1e-08,137.59,137.58,95.6]
[1745181841945,1e-08,137.59,137.58,14.9]
[1745181843071,29.47926962,137.59,137.58,14.9]
[1745181853279,1e-08,137.59,137.58,14.9]
[1745181857382,18.64964887,137.59,137.58,14.9]
[1745181857559,29.47926962,137.59,137.58,14.9]
[1745181857754,29.47926962,137.59,137.53,259.86962075]
[1745181858066,29.47926962,137.59,137.54,14.9]
[1745181858067,10.82962075,137.58,137.54,14.9]
[1745181858268,29.47926962,137.59,137.54,25.72962075]
[1745181858885,1e-08,137.59,137.54,25.72962075]
[1745181859078,1e-08,137.59,137.55,10.82962075]
[1745181859986,1e-08,137.59,137.55,91.52962075]
[1745181861678,1e-08,137.59,137.55,80.7]
[1745181861873,10.82962076,137.59,137.55,80.7]
[1745181862684,29.47926962,137.59,137.55,80.7]
[1745181864864,29.47926962,137.59,137.56,14.9]
[1745181865179,1e-08,137.59,137.58,10.82962075]